fUSD/lending_fUSD_20250616
["ID","MTS","AMOUNT","RATE_DAILY","PERIOD"]
[366160691,1750092643468,-493.70553023,0.00016055,2]
[366160692,1750092643478,-490.0,0.00016055,2]
[366160693,1750092643487,-490.0,0.00016055,2]
[366160694,1750092643497,-484.12862701,0.00016055,2]
[366160695,1750092643508,-742.02,0.00016055,2]
[366160696,1750092643518,-927.27,0.00016055,2]
[366160697,1750092643528,-490.0,0.00016055,2]
[366160698,1750092643539,-490.0,0.00016055,2]
[366160699,1750092643550,-1887.46,0.00016055,2]
[366160700,1750092643561,-490.0,0.00016055,2]
[366160701,1750092643572,-1690.31,0.00016055,2]
[366160702,1750092643583,-490.0,0.00016055,2]
[366160703,1750092643593,-490.0,0.00016055,2]
[366160704,1750092643604,-490.0,0.00016055,2]
[366160705,1750092643614,-490.0,0.00016055,2]
[366160706,1750092643867,-581.74,0.00016055,2]
[366160707,1750092643879,-1063.73,0.00016055,2]
[366160708,1750092643891,-1243.91,0.00016055,2]
[366160709,1750092643902,-490.0,0.00016055,2]
[366160710,1750092643912,-582.6,0.00016055,2]
[366160711,1750092643922,-490.0,0.00016055,2]
[366160712,1750092643932,-490.0,0.00016055,2]
[366160713,1750092643946,-1872.55,0.00016055,2]
[366160714,1750092643955,-1617.24,0.00016055,2]
[366160715,1750092643966,-573.66454515,0.00016055,2]
[366160716,1750092643976,-804.95,0.00016055,2]
[366160717,1750092643988,-712.59,0.00016055,2]
[366160718,1750092643999,-490.0,0.00016055,2]
[366160719,1750092644010,-597.27,0.00016055,2]
[366160720,1750092644020,-490.0,0.00016055,2]
[366160721,1750092644032,-504.3,0.00016055,2]
[366160722,1750092644042,-504.3,0.00016055,2]
[366160723,1750092644052,-490.0,0.00016055,2]
[366160724,1750092644061,-490.0,0.00016055,2]
[366160725,1750092644072,-694.81,0.00016055,2]
[366160726,1750092644081,-490.0,0.00016055,2]
[366160727,1750092644091,-534.05,0.00016055,2]
[366160728,1750092644101,-490.0,0.00016055,2]
[366160729,1750092644111,-490.0,0.00016055,2]
[366160730,1750092644122,-490.0,0.00016055,2]
[366160731,1750092644132,-1741.62,0.00016055,2]
[366160732,1750092644143,-5362.91223606,0.00016055,2]
[366160733,1750092644650,-490.0,0.00016054,2]
[366160734,1750092644661,-548.03776394,0.00016055,2]
[366160735,1750092644672,-490.0,0.00016055,2]
[366160736,1750092644681,-88.2747472,0.00016055,2]
[366160737,1750092644693,-401.7252528,0.00016055,2]
[366160738,1750092644704,-490.0,0.00016055,2]
[366160739,1750092644714,-185.8747472,0.00016055,2]
[366160740,1750092644749,-304.1252528,0.00016055,2]
[366160741,1750092644760,-490.0,0.00016055,2]
[366160742,1750092644770,-397.56469726,0.00016055,2]
[366160743,1750092644787,-276.82530274,0.00016055,2]
[366160744,1750092644796,-512.2,0.00016055,2]
[366160745,1750092644806,-320.48959936,0.00016055,2]
[366160746,1750092644816,-651.04325141,0.00016055,2]
[366160747,1750092644828,-1129.48674859,0.00016055,2]
[366160748,1750092644839,-559.14076901,0.00016055,2]
[366160749,1750092644848,-4802.36719038,0.00016055,2]
[366160750,1750092644860,-1172.96668734,0.00016055,2]
[366160751,1750092644871,-419.62612228,0.00016055,2]
[366160752,1750092644882,-85.46423392,0.00016055,2]
[366160753,1750092644894,-404.53576608,0.00016055,2]
[366160754,1750092644904,-490.0,0.00016055,2]
[366160755,1750092644914,-553.65,0.00016055,2]
[366160756,1750092644923,-501.61,0.00016055,2]
[366160757,1750092644934,-490.0,0.00016055,2]
[366160758,1750092644948,-490.0,0.00016055,2]
[366160759,1750092644958,-14.59623228,0.00016055,2]
[366160760,1750092645350,202.0,0.00015303,2]
[366160771,1750092646159,-994.11,0.00016055,2]
[366160772,1750092646171,-1973.0,0.00016055,2]
[366160773,1750092646188,-2170.0,0.00016055,2]
[366160774,1750092646211,-2263.34420005,0.00016055,2]
[366160775,1750092646237,-3550.46242069,0.00016055,2]
[366160777,1750092666200,3333.4966,0.00015955,2]
[366160779,1750092671590,201.0,0.00015303,2]
[366160785,1750092726649,238.82866104,0.00015955,2]
[366160786,1750092726676,629.65810089,0.00015955,2]
[366160787,1750092731922,230.0,0.00015303,2]
[366160789,1750092777700,675.0,0.0002465,120]
[366160791,1750092779240,500.0,0.00015068,2]
[366160795,1750092809933,1000.0,0.00015168,2]
[366160796,1750092811418,236.45,0.00013699,2]
[366160798,1750092851644,250.0,0.00015121,2]
[366160799,1750092863200,233.53676406,0.00015956,2]
[366160800,1750092866329,2235.31224285,0.00015955,2]
[366160801,1750092868636,800.0,0.00015068,2]
[366160802,1750092870386,666.0,0.00015044,2]
[366160804,1750092900079,300.0,0.000155,5]
[366160806,1750092902236,600.0,0.000156,5]
[366160807,1750092904354,900.0,0.000157,5]
[366160808,1750092906449,1300.0,0.000158,5]
[366160809,1750092909101,119.0428922,0.000159,5]
[366160810,1750092909130,1480.9571078,0.000159,5]
[366160812,1750092941421,201.0,0.00015407,2]
[366160813,1750092941681,201.0,0.00015971,2]
[366160814,1750092945722,833.27615,0.00016,2]
[366160815,1750092992109,150.0,0.00016,2]
[366160816,1750093048702,-2235.31224279,0.00016028,2]
[366160817,1750093048725,-300.0,0.00016044,2]
[366160818,1750093048747,-300.0,0.00016044,2]
[366160819,1750093048769,-300.0,0.00016044,2]
[366160820,1750093048792,-303.22,0.00016045,2]
[366160821,1750093048816,-61.46775721,0.00016045,2]
[366160823,1750093059149,4178.70273084,0.00015955,2]
[366160831,1750093186608,-4178.70273076,0.00016011,2]
[366160832,1750093186637,-300.0,0.00016044,2]
[366160833,1750093186672,-242.21224279,0.00016045,2]
[366160834,1750093186703,-304.32,0.00016045,2]
[366160835,1750093186733,-305.74,0.00016045,2]
[366160836,1750093186763,-304.0,0.00016045,2]
[366160837,1750093186792,-300.0,0.00016045,2]
[366160838,1750093186820,-300.0,0.00016045,2]
[366160839,1750093186849,-1200.0,0.00016045,2]
[366160840,1750093186881,-301.29,0.00016045,2]
[366160841,1750093186910,-300.0,0.00016046,2]
[366160842,1750093186941,-491.83,0.00016046,2]
[366160843,1750093186973,-495.99,0.00016046,2]
[366160844,1750093187004,-305.56,0.00016046,2]
[366160845,1750093187035,-1957.856,0.00016046,2]
[366160846,1750093187067,-207.4,0.00016046,2]
[366160847,1750093187095,-550.0,0.00016053,2]
[366160848,1750093187125,-9270.25027665,0.00016054,2]
[366160849,1750093187152,-184.51680138,0.00016054,2]
[366160850,1750093187187,-490.0,0.00016054,2]
[366160851,1750093187218,-578.44,0.00016054,2]
[366160852,1750093187245,-493.84,0.00016054,2]
[366160853,1750093187273,-490.0,0.00016054,2]
[366160854,1750093187301,-490.0,0.00016054,2]
[366160855,1750093187330,-490.0,0.00016054,2]
[366160856,1750093187358,-490.0,0.00016054,2]
[366160857,1750093187388,-490.0,0.00016054,2]
[366160858,1750093187415,-490.0,0.00016054,2]
[366160859,1750093187445,-598.19,0.00016054,2]
[366160860,1750093187474,-490.0,0.00016054,2]
[366160861,1750093187501,-490.0,0.00016054,2]
[366160862,1750093187531,-490.0,0.00016054,2]
[366160863,1750093187559,-641.23,0.00016054,2]
[366160864,1750093187587,-490.0,0.00016054,2]
[366160865,1750093187617,-785.14,0.00016054,2]
[366160866,1750093187645,-490.0,0.00016054,2]
[366160867,1750093187680,-490.0,0.00016054,2]
[366160868,1750093187709,-551.12157943,0.00016054,2]
[366160869,1750093187736,-490.0,0.00016054,2]
[366160870,1750093187764,-490.0,0.00016054,2]
[366160871,1750093187792,-490.0,0.00016054,2]
[366160872,1750093187820,-506.05,0.00016054,2]
[366160873,1750093187847,-490.0,0.00016054,2]
[366160874,1750093187875,-490.0,0.00016054,2]
[366160875,1750093187902,-490.0,0.00016054,2]
[366160876,1750093187930,-490.0,0.00016054,2]
[366160877,1750093187956,-646.32,0.00016054,2]
[366160878,1750093187984,-490.0,0.00016054,2]
[366160879,1750093188011,-490.0,0.00016054,2]
[366160880,1750093188038,-490.0,0.00016054,2]
[366160881,1750093188066,-1032.13,0.00016054,2]
[366160882,1750093188094,-490.0,0.00016054,2]
[366160883,1750093188126,-490.0,0.00016054,2]
[366160884,1750093188154,-1061.89,0.00016054,2]
[366160885,1750093188182,-627.26,0.00016054,2]
[366160886,1750093188223,-614.85,0.00016054,2]
[366160887,1750093188252,-739.48,0.00016054,2]
[366160888,1750093188280,-490.0,0.00016054,2]
[366160889,1750093188309,-490.0,0.00016054,2]
[366160890,1750093188338,-490.0,0.00016054,2]
[366160891,1750093188368,-490.0,0.00016054,2]
[366160892,1750093188396,-490.0,0.00016054,2]
[366160893,1750093188424,-490.0,0.00016054,2]
[366160894,1750093188453,-490.0,0.00016054,2]
[366160895,1750093188481,-916.09,0.00016054,2]
[366160896,1750093188511,-490.0,0.00016054,2]
[366160897,1750093188539,-795.72,0.00016054,2]
[366160898,1750093188567,-866.71,0.00016054,2]
[366160899,1750093188595,-559.12,0.00016054,2]
[366160900,1750093188623,-840.65,0.00016054,2]
[366160901,1750093188651,-490.0,0.00016054,2]
[366160902,1750093188679,-490.0,0.00016054,2]
[366160903,1750093188706,-490.0,0.00016054,2]
[366160904,1750093188733,-673.25,0.00016054,2]
[366160905,1750093188760,-598.03,0.00016054,2]
[366160906,1750093188789,-291.93400552,0.00016054,2]
[366160907,1750093192368,200.0,0.00015163,2]
[366160908,1750093199516,210.18308769,0.00015955,2]
[366160910,1750093241672,188.19553,0.00015407,2]
[366160911,1750093244712,173.43597263,0.00015953,2]
[366160912,1750093253599,240.04209073,0.00015744,2]
[366160913,1750093262015,1943.20733031,0.000159,2]
[366160914,1750093262041,4729.3232751,0.000159,2]
[366160915,1750093263076,1685.3671,0.00015955,2]
[366160916,1750093301491,201.0,0.00015536,2]
[366160917,1750093327732,868.48676193,0.00015688,2]
[366160918,1750093357934,500.0,0.00015954,2]
[366160919,1750093364035,2015.82286297,0.00015954,2]
[366160920,1750093364059,10000.0,0.00015954,2]
[366160921,1750093364084,10000.0,0.00015954,2]
[366160922,1750093364108,10000.0,0.00015954,2]
[366160923,1750093364133,4094.79863703,0.00015954,2]
[366160924,1750093365235,578.33,0.00015091,2]
[366160925,1750093373303,2200.0,0.00015735,2]
[366160926,1750093373377,3126.87136297,0.00015088,2]
[366160927,1750093373403,10000.0,0.00015088,2]
[366160928,1750093373428,7983.62863703,0.00015088,2]
[366160930,1750093378376,1021.0,0.00016,2]
[366160931,1750093379033,200.0,0.00015039,7]
[366160932,1750093379340,795.37136297,0.00015954,2]
[366160933,1750093379366,4153.39914196,0.00015954,2]
[366160935,1750093388861,5846.60085804,0.00015955,2]
[366160941,1750093642786,1255.96,0.00015039,2]
[366160942,1750093648150,890.70784006,0.0001498,2]
[366160943,1750093661371,201.0,0.00014536,2]
[366160944,1750093661639,201.0,0.0001507,2]
[366160946,1750093693767,581.01,0.00015056,2]
[366160949,1750093761058,167.85,0.00015387,2]
[366160956,1750093831668,-201.0,0.00015605,3]
[366160957,1750093831679,-300.0,0.00015629,2]
[366160958,1750093831690,-300.0,0.00015653,2]
[366160959,1750093831701,-250.0,0.00015653,2]
[366160960,1750093831711,-300.0,0.00015759,2]
[366160961,1750093831722,-1122.18076494,0.00015759,2]
[366160962,1750093831745,-77.81923506,0.00015759,2]
[366160963,1750093831755,-300.0,0.00015759,2]
[366160964,1750093831766,-300.0,0.00015759,2]
[366160965,1750093831776,-24768.59,0.0001576,2]
[366160966,1750093831786,-151.0,0.00015769,2]
[366160967,1750093831796,-151.0,0.0001577,2]
[366160968,1750093831805,-150.0,0.00015771,2]
[366160969,1750093831815,-1000.0,0.00015773,2]
[366160970,1750093831825,-150.0,0.00015776,2]
[366160971,1750093831835,-150.0,0.00015776,2]
[366160972,1750093831845,-150.0,0.00015779,2]
[366160973,1750093831855,-150.0,0.00015783,2]
[366160974,1750093831865,-150.0,0.00015783,2]
[366160975,1750093831875,-150.0,0.00015792,2]
[366160976,1750093831884,-150.0,0.00015797,2]
[366160977,1750093831894,-150.0,0.00015802,2]
[366160978,1750093831904,-150.0,0.00015804,2]
[366160979,1750093831914,-150.0,0.00015806,2]
[366160980,1750093831925,-150.0,0.0001581,2]
[366160981,1750093831935,-1000.0,0.00015816,2]
[366160982,1750093831945,-150.0,0.00015818,2]
[366160983,1750093831955,-150.0,0.00015821,2]
[366160984,1750093831966,-150.0,0.00015823,2]
[366160985,1750093831977,-150.0,0.00015824,2]
[366160986,1750093831986,-150.0,0.00015826,2]
[366160987,1750093831996,-150.0,0.00015829,2]
[366160988,1750093832006,-150.0,0.00015831,2]
[366160989,1750093832017,-150.0,0.00015832,2]
[366160990,1750093832026,-150.0,0.00015832,2]
[366160991,1750093832036,-150.0,0.00015834,2]
[366160992,1750093832046,-300.0,0.00015834,2]
[366160993,1750093832057,-150.0,0.00015836,2]
[366160994,1750093832066,-150.0,0.00015839,2]
[366160995,1750093832083,-150.0,0.00015841,2]
[366160996,1750093832093,-150.0,0.00015842,2]
[366160997,1750093832104,-150.0,0.00015854,2]
[366160998,1750093832114,-150.0,0.00015862,2]
[366160999,1750093832124,-150.0,0.00015867,2]
[366161000,1750093832135,-150.0,0.00015867,2]
[366161001,1750093832145,-150.0,0.00015871,2]
[366161002,1750093832155,-150.0,0.00015871,2]
[366161003,1750093832165,-150.0,0.00015872,2]
[366161004,1750093832175,-150.0,0.00015873,2]
[366161005,1750093832186,-150.0,0.00015878,2]
[366161006,1750093832196,-150.0,0.00015878,2]
[366161007,1750093832206,-150.0,0.00015883,2]
[366161008,1750093832216,-150.0,0.00015883,2]
[366161009,1750093832227,-150.0,0.00015886,2]
[366161010,1750093832237,-1000.0,0.00015887,2]
[366161011,1750093832247,-150.0,0.00015888,2]
[366161012,1750093832256,-150.0,0.00015893,2]
[366161013,1750093832266,-150.0,0.00015894,2]
[366161014,1750093832276,-150.0,0.00015896,2]
[366161015,1750093832286,-4035.63470732,0.000159,2]
[366161016,1750093832301,-260.99652648,0.000159,2]
[366161018,1750093832314,-150.0,0.00015905,2]
[366161020,1750093832330,-150.0,0.00015908,2]
[366161022,1750093832340,-150.0,0.00015909,2]
[366161024,1750093832350,-150.0,0.0001591,2]
[366161026,1750093832360,-150.0,0.00015919,2]
[366161028,1750093832372,-35.07961534,0.0001592,2]
[366161032,1750093832405,-268.88898183,0.0001592,2]
[366161035,1750093832418,-831.537958,0.0001592,2]
[366161038,1750093832439,-1001.77930657,0.0001592,2]
[366161040,1750093832451,-927.61514,0.0001592,2]
[366161064,1750093832784,-1446.7187223,0.0001592,2]
[366161065,1750093832799,-279.74419682,0.0001592,2]
[366161068,1750093837631,-1400.77607914,0.0001592,2]
[366161069,1750093837644,-150.0,0.0001592,2]
[366161070,1750093837656,-150.0,0.00015924,2]
[366161071,1750093837669,-150.0,0.00015927,2]
[366161072,1750093837681,-150.0,0.00015934,2]
[366161073,1750093837693,-170.0,0.00015934,2]
[366161074,1750093837705,-500.0,0.00015945,2]
[366161075,1750093837717,-150.0,0.00015946,2]
[366161076,1750093837729,-150.0,0.00015949,2]
[366161077,1750093837742,-150.0,0.00015949,2]
[366161078,1750093837754,-150.0,0.0001595,2]
[366161079,1750093837765,-29.22392086,0.0001595,2]
[366161080,1750093837780,-120.77607914,0.0001595,2]
[366161081,1750093837793,-237.5587725,0.00015953,2]
[366161082,1750093837819,-572.75163294,0.00015953,2]
[366161083,1750093837839,-2034.52877659,0.00015953,2]
[366161084,1750093837861,-2012.032939,0.00015953,2]
[366161085,1750093837888,-2801.13005561,0.00015953,2]
[366161086,1750093837899,-359.86699401,0.00015954,2]
[366161087,1750093837912,-474.56783744,0.00015955,2]
[366161088,1750093837924,-51108.33519114,0.00015955,2]
[366161151,1750093840220,250.0,0.00014936,2]
[366161152,1750093840345,-7555.47415082,0.00015955,2]
[366161153,1750093840355,-150.0,0.00015956,2]
[366161154,1750093840365,-150.0,0.00015959,2]
[366161155,1750093840375,-150.0,0.00015959,2]
[366161156,1750093840384,-150.0,0.00015962,2]
[366161157,1750093840394,-417.93521153,0.00015962,2]
[366161158,1750093840404,-150.0,0.00015963,2]
[366161159,1750093840414,-150.0,0.00015966,2]
[366161160,1750093840423,-150.0,0.00015969,2]
[366161161,1750093840433,-2000.0,0.00015971,2]
[366161162,1750093840442,-150.0,0.00015972,2]
[366161163,1750093840452,-500.0,0.00015973,2]
[366161164,1750093840462,-150.0,0.00015976,2]
[366161165,1750093840471,-150.0,0.00015977,2]
[366161166,1750093840480,-150.0,0.00015982,2]
[366161167,1750093840490,-150.0,0.00015984,2]
[366161168,1750093840500,-1000.0,0.00015984,2]
[366161170,1750093840509,-1368.2749821,0.0001599,2]
[366161171,1750093840531,-3733.58304734,0.0001599,2]
[366161172,1750093840543,-2556.14414714,0.0001599,2]
[366161173,1750093840553,-150.0,0.00015999,2]
[366161174,1750093840563,-1869.36968375,0.00016,3]
[366161175,1750093840573,-170.82,0.00016,2]
[366161176,1750093840583,-1164.67,0.00016,2]
[366161177,1750093840594,-301.48,0.00016,2]
[366161178,1750093840604,-150.0,0.00016,2]
[366161179,1750093840614,-150.0,0.00016,2]
[366161180,1750093840624,-1594.51,0.00016,2]
[366161181,1750093840634,-163.46,0.00016,2]
[366161182,1750093840643,-461.5,0.00016,2]
[366161183,1750093840653,-802.56,0.00016,2]
[366161184,1750093840663,-150.0,0.00016,2]
[366161185,1750093840672,-163.46,0.00016,2]
[366161186,1750093840682,-1164.67,0.00016,2]
[366161187,1750093840691,-797.31,0.00016,2]
[366161188,1750093840701,-1164.67,0.00016,2]
[366161189,1750093840710,-201.296527,0.00016,2]
[366161190,1750093840720,-170.82,0.00016,2]
[366161191,1750093840730,-150.0,0.00016,2]
[366161192,1750093840739,-1000.0,0.00016,2]
[366161193,1750093840749,-1000.0,0.00016004,2]
[366161194,1750093840759,-150.0,0.00016013,2]
[366161195,1750093840769,-150.0,0.00016014,2]
[366161196,1750093840779,-150.0,0.00016015,2]
[366161197,1750093840789,-150.0,0.00016016,2]
[366161198,1750093840800,-6192.14,0.0001602,2]
[366161199,1750093840811,-150.0,0.00016021,2]
[366161200,1750093840822,-150.0,0.00016022,2]
[366161201,1750093840831,-1000.0,0.00016027,2]
[366161202,1750093840841,-150.0,0.00016031,2]
[366161203,1750093840852,-278.05609054,0.00016032,2]
[366161204,1750093840861,-150.0,0.00016036,2]
[366161205,1750093840870,-150.0,0.00016042,2]
[366161206,1750093840880,-210.39,0.00016043,2]
[366161207,1750093840891,-150.0,0.00016043,2]
[366161208,1750093840900,-1957.856,0.00016043,2]
[366161209,1750093840910,-207.4,0.00016043,2]
[366161210,1750093840921,-150.42,0.00016044,2]
[366161211,1750093840931,-150.42,0.00016044,2]
[366161212,1750093840941,-150.42,0.00016044,2]
[366161213,1750093840951,-177.80236607,0.00016044,2]
[366161214,1750093840960,-150.0,0.00016044,2]
[366161215,1750093840970,-304.07,0.00016044,2]
[366161216,1750093840980,-302.05,0.00016044,2]
[366161217,1750093840990,-300.61,0.00016044,2]
[366161218,1750093840999,-304.02,0.00016044,2]
[366161219,1750093841011,-302.24,0.00016044,2]
[366161220,1750093841020,-301.78,0.00016044,2]
[366161221,1750093841030,-302.66,0.00016045,2]
[366161222,1750093841040,-9848.07593826,0.00016045,2]
[366161223,1750093841050,-151.0,0.00016046,2]
[366161224,1750093841059,-151.0,0.00016046,2]
[366161225,1750093841068,-151.0,0.00016046,2]
[366161226,1750093841078,-151.0,0.00016046,2]
[366161227,1750093841088,-668.65185757,0.00016046,2]
[366161228,1750093841098,-500.0,0.00016046,2]
[366161229,1750093841107,-500.0,0.00016046,2]
[366161230,1750093841117,-500.0,0.00016046,2]
[366161231,1750093841128,-500.0,0.00016046,2]
[366161232,1750093841138,-500.0,0.00016046,2]
[366161233,1750093841147,-500.0,0.00016046,2]
[366161234,1750093841157,-500.0,0.00016046,2]
[366161235,1750093841166,-500.0,0.00016046,2]
[366161236,1750093841176,-500.0,0.00016046,2]
[366161237,1750093841186,-500.0,0.00016046,2]
[366161238,1750093841195,-500.0,0.00016046,2]
[366161239,1750093841205,-500.0,0.00016046,2]
[366161240,1750093841214,-500.0,0.00016046,2]
[366161241,1750093841224,-500.0,0.00016046,2]
[366161242,1750093841233,-500.0,0.00016046,2]
[366161243,1750093841243,-500.0,0.00016046,2]
[366161244,1750093841252,-500.0,0.00016046,2]
[366161245,1750093841262,-500.0,0.00016046,2]
[366161246,1750093841272,-500.0,0.00016046,2]
[366161247,1750093841281,-500.0,0.00016046,2]
[366161248,1750093841290,-500.0,0.00016046,2]
[366161249,1750093841300,-500.0,0.00016046,2]
[366161250,1750093841310,-500.0,0.00016046,2]
[366161251,1750093841319,-500.0,0.00016046,2]
[366161252,1750093841332,-500.0,0.00016046,2]
[366161253,1750093841342,-500.0,0.00016046,2]
[366161254,1750093841351,-500.0,0.00016046,2]
[366161255,1750093841361,-500.0,0.00016046,2]
[366161256,1750093841371,-500.0,0.00016046,2]
[366161257,1750093841381,-500.0,0.00016046,2]
[366161258,1750093841390,-28228.603197,0.00016048,2]
[366161259,1750093841400,-150.0,0.00016049,2]
[366161260,1750093841410,-150.99,0.0001605,2]
[366161261,1750093841420,-9999.99,0.0001605,2]
[366161262,1750093841429,-150.0,0.00016052,2]
[366161263,1750093841438,-490.0,0.00016052,2]
[366161264,1750093841448,-1046.63,0.00016052,2]
[366161265,1750093841457,-1011.87,0.00016052,2]
[366161266,1750093841466,-731.96,0.00016052,2]
[366161267,1750093841476,-490.0,0.00016052,2]
[366161268,1750093841486,-592.77,0.00016052,2]
[366161269,1750093841495,-775.68,0.00016052,2]
[366161270,1750093841504,-1033.38,0.00016052,2]
[366161271,1750093841514,-683.23,0.00016052,2]
[366161272,1750093841524,-1397.76,0.00016052,2]
[366161273,1750093841534,-629.56,0.00016052,2]
[366161274,1750093841545,-583.72,0.00016052,2]
[366161275,1750093841554,-490.0,0.00016052,2]
[366161276,1750093841563,-490.0,0.00016052,2]
[366161277,1750093841573,-3489.8,0.00016052,2]
[366161278,1750093841583,-490.0,0.00016052,2]
[366161279,1750093841592,-523.1,0.00016052,2]
[366161280,1750093841602,-865.05,0.00016052,2]
[366161281,1750093841611,-2784.75,0.00016052,2]
[366161282,1750093841620,-3799.51,0.00016052,2]
[366161283,1750093841630,-753.31,0.00016052,2]
[366161284,1750093841640,-840.1,0.00016052,2]
[366161285,1750093841649,-490.0,0.00016052,2]
[366161286,1750093841659,-598.16,0.00016052,2]
[366161287,1750093841669,-947.387789,0.00016052,2]
[366161288,1750093841679,-963.5,0.00016052,2]
[366161289,1750093841689,-160.730538,0.00016052,2]
[366161290,1750093841699,-580.08,0.00016052,2]
[366161291,1750093841708,-490.0,0.00016052,2]
[366161292,1750093841719,-791.85,0.00016052,2]
[366161293,1750093841729,-490.0,0.00016052,2]
[366161294,1750093841739,-1004.42124907,0.00016053,2]
[366161295,1750093841749,-500.0,0.00016053,2]
[366161296,1750093841758,-490.0,0.00016053,2]
[366161297,1750093841768,-490.0,0.00016053,2]
[366161298,1750093841778,-490.0,0.00016053,2]
[366161299,1750093841788,-490.0,0.00016053,2]
[366161300,1750093841798,-490.0,0.00016053,2]
[366161301,1750093841808,-636.12568224,0.00016053,2]
[366161302,1750093841817,-490.0,0.00016053,2]
[366161303,1750093841827,-490.0,0.00016053,2]
[366161304,1750093841836,-490.0,0.00016053,2]
[366161305,1750093841846,-490.0,0.00016053,2]
[366161306,1750093841855,-490.0,0.00016053,2]
[366161307,1750093841865,-490.0,0.00016053,2]
[366161308,1750093841874,-250.0,0.00016053,2]
[366161309,1750093841883,-490.0,0.00016053,2]
[366161310,1750093841893,-490.0,0.00016053,2]
[366161311,1750093841904,-490.0,0.00016053,2]
[366161312,1750093841914,-490.0,0.00016053,2]
[366161313,1750093841924,-490.0,0.00016053,2]
[366161314,1750093841934,-490.0,0.00016053,2]
[366161315,1750093841944,-490.0,0.00016053,2]
[366161316,1750093841953,-490.0,0.00016053,2]
[366161317,1750093841964,-490.0,0.00016053,2]
[366161318,1750093841975,-490.0,0.00016053,2]
[366161319,1750093841985,-9999.99,0.00016053,2]
[366161320,1750093841994,-490.0,0.00016053,2]
[366161321,1750093842004,-150.99,0.00016053,2]
[366161322,1750093842013,-490.0,0.00016053,2]
[366161323,1750093842023,-7286.5,0.00016053,2]
[366161324,1750093842032,-490.0,0.00016053,2]
[366161325,1750093842042,-490.0,0.00016053,2]
[366161326,1750093842052,-490.0,0.00016053,2]
[366161327,1750093842061,-315.0,0.00016053,2]
[366161328,1750093842071,-490.0,0.00016053,2]
[366161329,1750093842080,-490.0,0.00016053,2]
[366161330,1750093842090,-490.0,0.00016053,2]
[366161331,1750093842100,-490.0,0.00016053,2]
[366161332,1750093842110,-490.0,0.00016053,2]
[366161333,1750093842120,-490.0,0.00016053,2]
[366161334,1750093842130,-490.0,0.00016053,2]
[366161335,1750093842139,-490.0,0.00016053,2]
[366161336,1750093842149,-494.39771913,0.00016053,2]
[366161337,1750093842159,-490.0,0.00016053,2]
[366161338,1750093842168,-490.0,0.00016053,2]
[366161339,1750093842178,-490.0,0.00016053,2]
[366161340,1750093842188,-490.0,0.00016053,2]
[366161341,1750093842197,-490.0,0.00016053,2]
[366161342,1750093842207,-490.0,0.00016053,2]
[366161343,1750093842216,-490.0,0.00016053,2]